[Event "FIDE World School-ch O-17 2025"]
[Site "Vrnjacka Banja"]
[Date "2025.03.20"]
[Round "1.5"]
[White "Senevirathne, D C B K"]
[Black "Yildiz, Egehan"]
[Result "0-1"]
[Annotator "TA"]
[ECO "B15"]
[WhiteElo "1840"]
[BlackElo "2204"]
[PlyCount "134"]
[EventDate "2025.03.19"]
[EventType "swiss"]
[EventCountry "SRB"]
[SourceTitle "playchess.com"]
[Source "ChessBase"]
[SourceQuality "1"]
[TimeControl "5400+30"]

{[%evp 15,134,20,22,12,21,15,3,14,9,12,5,11,14,5,0,-9,2,-9,-18,-18,-19,-21,18,-18,-8,-21,-24,-18,-12,-16,-12,-11,-16,-12,-8,-18,-5,-8,-5,-5,-7,-6,-7,-8,0,0,0,0,0,0,0,0,0,-39,0,0,0,0,0,-50,-51,-45,-51,-157,-154,-158,-143,-159,-65,-181,-58,-59,-62,-121,0,-39,-39,-48,-45,-42,-9,-75,-26,-39,-37,-36,-24,-34,-22,-22,0,-32,-37,-40,-54,-48,0,0,0,0,0,0,0,0,0,0,0,-38,-18,-43,-48,-42,-42,-68,-59,-59,-59,-233,-138,-860,-856]} 1. e4 {[%emt 0:00:04]} c6 {[%emt 0:00:08]} 2. d4 {[%emt 0:00:03]} d5 {[%emt 0:00:13]} 3. Nd2 {[%emt 0:00:07]} dxe4 {[%emt 0:00:20]} 4. Nxe4 {[%emt 0:00:06]} Nf6 {[%emt 0:00:08]} 5. Nxf6+ {[%emt 0:00:39]} exf6 {[%emt 0:00:06]} 6. c3 {[%emt 0:00:04]} Bd6 {[%emt 0:00:17]} 7. Bd3 {[%emt 0:00:07]} O-O {[%emt 0:00:14]} 8. Ne2 {[%emt 0:00:06][%cal Bg1e2,Be2g3,Bg3e4][%mdl 32]} Re8 {[%emt 0:00:54]} 9. O-O {[%emt 0:00:08] B15: Caro-Kann: 3 Nc3: 3...g6 and 3...dxe4 4 Nxe4 Nf6 5 Nxf6+ exf6.} Nd7 {[%emt 0:05:24]} 10. Ng3 {[%emt 0:04:36]} g6 {[%emt 0:00:13] Prevents Nf5} 11. Ne4 {[%emt 0:08:13] The position is equal.} Bf8 {[%emt 0:14:15]} 12. Bf4 {[%emt 0:10:07]} (12. a4 {simplifies} c5 13. Bc2 f5 14. Nxc5 Nxc5 15. dxc5 Bxc5 16. Qxd8 Rxd8 17. a5) 12... Nb6 {[%emt 0:01:46]} 13. Re1 {[%emt 0:08:37]} Nd5 {[%emt 0:04:45] Prevents Bc7} 14. Qd2 $146 {[%emt 0:08:58]} (14. Bd2 f5 15. Ng5 Rxe1+ 16. Qxe1 Qc7 17. Qe8 Rb8 18. Re1 b5 19. Qe2 Bd7 20. Nf3 {1-0 Krastev,A (2340)-Tica,S (2396) Mitropa Cup Online 2021 (3.4)}) 14... Nxf4 {[%emt 0:07:41]} 15. Qxf4 {[%emt 0:00:19]} Kg7 {[%emt 0:00:15]} 16. Re3 {[%emt 0:08:23]} f5 {[%emt 0:16:42]} 17. Ng5 {[%emt 0:07:34]} Rxe3 {[%emt 0:08:15] Successful Defense Black} 18. Qxe3 {[%emt 0:00:22]} Be7 {[%emt 0:04:28]} 19. f4 {[%emt 0:17:44]} h6 {[%emt 0:04:19]} 20. Nf3 {[%emt 0:00:58]} Be6 {[%emt 0:01:02]} 21. Ne5 {[%emt 0:03:02]} Qb6 {[%emt 0:09:57]} 22. b3 {[%emt 0:03:25]} c5 {[%emt 0:03:12]} 23. Nd7 {[%emt 0:02:18]} Bxd7 {[%emt 0:06:01]} 24. Qxe7 {[%emt 0:00:02]} cxd4 $1 {[%emt 0:00:45]} 25. Qe5+ $1 {[%emt 0:06:06]} (25. Qxd7 $2 dxc3+ 26. Kh1 Rd8 $19) 25... Kg8 {[%emt 0:00:37]} 26. Qxd4 {[%emt 0:00:39]} Qxd4+ {[%emt 0:00:54]} 27. cxd4 $11 {[%emt 0:00:01][%mdl 4096] Endgame KRB-KRB} Bc6 {[%emt 0:00:10]} 28. Rd1 {[%emt 0:01:04]} Rd8 {[%emt 0:00:25]} 29. Bc4 {[%emt 0:02:27]} Be4 {[%emt 0:01:26]} 30. Kf2 {[%emt 0:01:28]} Kg7 {[%emt 0:01:02]} 31. g3 {[%emt 0:01:10]} Kf6 {[%emt 0:00:43]} 32. d5 {[%emt 0:01:47]} Rd6 {[%emt 0:03:54]} 33. Ke3 {[%emt 0:01:08]} Ke7 {[%emt 0:00:53]} 34. Kd4 {[%emt 0:00:38]} Rd8 {[%emt 0:01:08][%cal Ob7b5]} 35. a4 {[%emt 0:03:15]} Kd6 {[%emt 0:00:34]} 36. Rd2 {[%emt 0:01:27]} Rg8 {[%emt 0:01:25]} 37. h3 {[%emt 0:00:57]} (37. a5 $11) 37... g5 $15 {[%emt 0:01:08]} 38. Ke3 {[%emt 0:00:06]} Re8 {[%emt 0:00:45]} 39. Kf2 {[%emt 0:01:11] Inhibits Bg2.} ({White should try} 39. fxg5 $15 hxg5 (39... Bxd5+ $2 40. Kf2 $18) 40. Kd4) 39... gxf4 $17 {[%emt 0:00:41]} 40. gxf4 {[%emt 0:00:01]} Rg8 {[%emt 0:00:01]} 41. Bf1 {[%emt 0:01:00] Dodges Rg2+} Bxd5 {[%emt 0:01:26] Black is more active.} ({Black should play} 41... h5 $17 {[%cal Oh5h4]} 42. Rd4 h4 (42... Bxd5 $2 43. Bc4 $18)) 42. Ke3 {[%emt 0:00:27]} (42. a5 $15) 42... Rg3+ {[%emt 0:00:30]} (42... a5 $19 43. Bc4 Rg3+ 44. Kd4 (44. Kf2 $2 Rg2+ 45. Ke3 Rxd2 $19) 44... Be6 45. Bxe6 fxe6 46. Kc4+ Ke7) 43. Kf2 $1 $15 {[%emt 0:00:27]} Rf3+ {[%emt 0:01:00]} (43... Rxb3 $2 44. Bg2 $18) 44. Ke2 {[%emt 0:00:02]} (44. Ke1 $1 $15 Rg3 (44... Rxb3 $2 45. Bc4 $18) (44... Rxf4 45. Bg2 $15) 45. Kf2 Rf3+ (45... Rxb3 $2 46. Bg2 $18) 46. Ke2) 44... Rg3 {[%emt 0:00:54]} (44... Rxb3 45. Bg2 $16) (44... Rxf4 $17 {Hoping for ...Ke5.} 45. Bg2 Re4+ 46. Bxe4 fxe4) 45. Kf2 $1 {[%emt 0:00:00]} Rg6 {[%emt 0:00:26]} (45... Rxb3 $2 46. Bg2 $18) 46. b4 {[%emt 0:01:14]} (46. Bc4 Rg2+ 47. Ke3 Rxd2 48. Kxd2 Bxc4 49. bxc4 Kc5 $19) 46... Ke6 {[%emt 0:00:55]} 47. Rd4 {[%emt 0:00:45]} Rg8 {[%emt 0:00:21]} 48. Bd3 {[%emt 0:00:35]} (48. Bc4 $11 Rd8 49. a5) 48... Rd8 {[%emt 0:00:26]} (48... Rg2+ $17 49. Kf1 Bf3) 49. Bc4 {[%emt 0:00:13]} Rd6 {[%emt 0:00:30]} 50. Bd3 {[%emt 0:00:27]} Rd7 {[%emt 0:00:44]} 51. Ke3 {[%emt 0:00:10]} Kf6 {[%emt 0:00:33]} 52. Kd2 {[%emt 0:00:50]} Rd6 {[%emt 0:00:58]} 53. Kc3 {[%emt 0:00:43]} (53. Bc4 $5 Ke6 54. Kc3 $11) 53... Rc6+ {[%emt 0:00:23]} 54. Kd2 {[%emt 0:00:01]} Be6 {[%emt 0:00:26]} 55. Rd8 {[%emt 0:00:26]} Ke7 {[%emt 0:00:43]} (55... b6 $15 {might be stronger.}) 56. Rb8 $11 {[%emt 0:01:43]} Bc8 {[%emt 0:00:19]} 57. b5 {[%emt 0:00:00]} Rc7 {[%emt 0:00:10]} 58. a5 {[%emt 0:00:00]} Kd6 {[%emt 0:00:54]} 59. Ra8 $1 {[%emt 0:00:00]} b6 {[%emt 0:00:08]} 60. axb6 {[%emt 0:02:00]} axb6 {[%emt 0:00:02]} 61. Ra1 {[%emt 0:00:00]} Bd7 {[%emt 0:00:29]} 62. Ra6 {[%emt 0:00:00]} Kc5 {[%emt 0:00:29]} 63. Ra1 {[%emt 0:00:00]} Rc8 {[%emt 0:00:23]} (63... Bxb5 $2 64. Rc1+ (64. Bxf5 $2 {loses.} Bc4 $19) 64... Kd6 65. Rxc7 (65. Bxb5 Rxc1 66. Kxc1 Kd5 $18) 65... Bxd3 66. Rxf7 $18) 64. Rb1 {[%emt 0:00:48]} Rg8 {[%emt 0:00:10]} 65. Rc1+ {[%emt 0:00:05]} Kd6 {[%emt 0:00:05]} 66. Rf1 $2 {[%emt 0:01:34] [#]} (66. Rd1 $15) 66... Rg3 {[%emt 0:00:16]} (66... Rg2+ $1 $19 67. Ke3 Rg3+ 68. Rf3 Rxf3+ 69. Kxf3 Kc5) 67. h4 $2 {[%emt 0:00:23][%mdl 8192] [#]} (67. Rd1 $17) 67... Rxd3+ $1 {[%emt 0:00:05][%mdl 512] Weighted Error Value: White=0.11 (very precise) /Black=0.12 (very precise)   Loses game:     	White=2     	---        Mistake:       	White=5     	Black=6      Inaccurate:     	White=5     	Black=3      OK:         	White=22    	Black=26     Best:        	White=1     	Black=2      Strong:       	White=4     	Black=1      Brilliant:      	---       	Black=1} 0-1

[Event "FIDE World School-ch O-17 2025"]
[Site "Vrnjacka Banja"]
[Date "2025.03.20"]
[Round "1.6"]
[White "Panda, Barnabas"]
[Black "Rustamov, Bekzod"]
[Result "1/2-1/2"]
[Annotator "NA RC"]
[ECO "A53"]
[WhiteElo "2147"]
[BlackElo "1829"]
[PlyCount "80"]
[EventDate "2025.03.19"]
[EventType "swiss"]
[EventCountry "SRB"]
[SourceTitle "playchess.com"]
[Source "ChessBase"]
[SourceQuality "1"]
[TimeControl "5400+30"]

1. d4 {[%emt 0:00:07]} Nf6 {[%emt 0:00:22]} 2. c4 {[%emt 0:00:18]} d6 {[%emt 0:00:17]} 3. Nc3 {[%emt 0:00:33]} Nbd7 {[%emt 0:00:10]} 4. e4 {[%emt 0:01:32]} e5 {[%emt 0:00:08]} 5. Be3 {[%emt 0:02:13]} Be7 {[%emt 0:03:00]} 6. h3 {[%emt 0:07:03]} O-O {[%emt 0:00:22]} 7. Nf3 {[%emt 0:02:55]} c6 {[%emt 0:00:52]} 8. Be2 {[%emt 0:02:46]} h6 {[%emt 0:04:40]} 9. O-O {[%emt 0:05:14]} Nh7 {[%emt 0:01:01]} 10. Qd2 {[%emt 0:02:12]} Bf6 {[%emt 0:11:55]} 11. Rad1 {[%emt 0:05:24]} Re8 {[%emt 0:05:14]} 12. dxe5 {[%emt 0:13:05]} dxe5 {[%emt 0:00:01]} 13. Na4 {[%emt 0:04:19]} Ng5 {[%emt 0:14:16]} 14. Nxg5 {[%emt 0:07:35]} Bxg5 {[%emt 0:00:01]} 15. Bg4 {[%emt 0:00:55]} Nf8 {[%emt 0:04:10]} 16. Qxd8 {[%emt 0:02:57]} Bxd8 {[%emt 0:01:23]} 17. Bxc8 {[%emt 0:00:19]} Rxc8 {[%emt 0:00:02]} 18. Nc5 {[%emt 0:02:40]} b6 {[%emt 0:04:38]} 19. Nb7 {[%emt 0:01:23]} Be7 {[%emt 0:00:01]} 20. Nd6 {[%emt 0:00:13]} Bxd6 {[%emt 0:00:01]} 21. Rxd6 {[%emt 0:00:16]} Red8 {[%emt 0:00:21]} 22. Rfd1 {[%emt 0:00:28]} Ne6 {[%emt 0:00:12]} 23. Rxd8+ {[%emt 0:09:53]} Rxd8 {[%emt 0:00:01]} 24. Rxd8+ {[%emt 0:00:14]} Nxd8 {[%emt 0:00:03]} 25. f4 {[%emt 0:00:24]} exf4 {[%emt 0:06:10]} 26. Bxf4 {[%emt 0:00:11]} Ne6 {[%emt 0:00:42]} 27. Bb8 {[%emt 0:00:47]} a6 {[%emt 0:00:16]} 28. Kf2 {[%emt 0:01:57]} Kf8 {[%emt 0:04:23]} 29. Bd6+ {[%emt 0:05:55]} Ke8 {[%emt 0:00:01]} 30. Ke3 {[%emt 0:04:00]} Kd7 {[%emt 0:01:50]} 31. Bb4 {[%emt 0:00:38]} h5 {[%emt 0:10:17]} 32. Bc3 {[%emt 0:07:10]} g6 {[%emt 0:04:43]} 33. b4 {[%emt 0:00:22]} Kd6 {[%emt 0:03:45]} 34. e5+ {[%emt 0:03:58]} Kd7 {[%emt 0:00:05]} 35. Ke4 {[%emt 0:01:27]} b5 {[%emt 0:05:49]} 36. cxb5 {[%emt 0:00:48]} axb5 {[%emt 0:00:00]} 37. Bd2 {[%emt 0:01:41]} Nc7 {[%emt 0:05:59]} 38. Kd4 {[%emt 0:02:04]} Ne6+ {[%emt 0:00:10]} 39. Ke4 {[%emt 0:00:30]} Nc7 {[%emt 0:00:04]} 40. Kd4 {[%emt 0:00:08]} Ne6+ {[%emt 0:00:43]} 1/2-1/2

[Event "FIDE World School-ch O-17 2025"]
[Site "Vrnjacka Banja"]
[Date "2025.03.20"]
[Round "1.7"]
[White "Aziz, Matthew Luke"]
[Black "Topuz, Mirac Melih"]
[Result "0-1"]
[Annotator "NA RC"]
[ECO "C07"]
[WhiteElo "1777"]
[BlackElo "2113"]
[PlyCount "96"]
[EventDate "2025.03.19"]
[EventType "swiss"]
[EventCountry "SRB"]
[SourceTitle "playchess.com"]
[Source "ChessBase"]
[SourceQuality "1"]
[TimeControl "5400+30"]

1. e4 {[%emt 0:00:12]} e6 {[%emt 0:00:01]} 2. d4 {[%emt 0:00:17]} d5 {[%emt 0:00:04]} 3. Nd2 {[%emt 0:00:26]} c5 {[%emt 0:01:52]} 4. Ngf3 {[%emt 0:00:39]} cxd4 {[%emt 0:00:22]} 5. exd5 {[%emt 0:08:43]} Qxd5 {[%emt 0:00:02]} 6. Bc4 {[%emt 0:01:56]} Qd6 {[%emt 0:05:59]} 7. O-O {[%emt 0:01:41]} Nf6 {[%emt 0:00:06]} 8. Nb3 {[%emt 0:05:03]} Nc6 {[%emt 0:00:27]} 9. Nbxd4 {[%emt 0:02:00]} Nxd4 {[%emt 0:02:38]} 10. Nxd4 {[%emt 0:06:53]} a6 {[%emt 0:02:00]} 11. c3 {[%emt 0:05:57]} Be7 {[%emt 0:06:17]} 12. h3 {[%emt 0:08:34]} O-O {[%emt 0:00:39]} 13. Qf3 {[%emt 0:02:17]} Qc7 {[%emt 0:10:25]} 14. Bd3 {[%emt 0:10:38]} Nd5 {[%emt 0:38:36]} 15. Re1 {[%emt 0:08:42]} Rd8 {[%emt 0:06:26]} 16. Be3 {[%emt 0:18:26]} Nxe3 {[%emt 0:00:43]} 17. Qxe3 {[%emt 0:10:12]} g6 {[%emt 0:04:27]} 18. Nf3 {[%emt 0:01:54]} Bd7 {[%emt 0:01:36]} 19. Ne5 {[%emt 0:01:37]} Be8 {[%emt 0:00:01]} 20. Rad1 {[%emt 0:00:24]} Rd5 {[%emt 0:02:44]} 21. Nc4 {[%emt 0:01:45]} Rad8 {[%emt 0:03:57]} 22. b3 {[%emt 0:02:08]} b5 {[%emt 0:02:19]} 23. Ne5 {[%emt 0:00:54]} Qxc3 {[%emt 0:01:44]} 24. Rc1 {[%emt 0:00:17]} Qxe5 {[%emt 0:00:54]} 25. Qxe5 {[%emt 0:00:38]} Rxe5 {[%emt 0:00:02]} 26. Rxe5 {[%emt 0:00:14]} Rxd3 {[%emt 0:00:14]} 27. Rc8 {[%emt 0:00:30]} Rd1+ {[%emt 0:06:37]} 28. Kh2 {[%emt 0:00:13]} Rd8 {[%emt 0:00:35]} 29. Rxd8 {[%emt 0:00:34]} Bxd8 {[%emt 0:00:01]} 30. Rc5 {[%emt 0:00:29]} Bd7 {[%emt 0:00:02]} 31. Kg3 {[%emt 0:00:34]} Kf8 {[%emt 0:00:18]} 32. f4 {[%emt 0:00:40]} Ke7 {[%emt 0:00:02]} 33. Kf3 {[%emt 0:00:22]} Kd6 {[%emt 0:00:01]} 34. Rc2 {[%emt 0:00:19]} Bc6+ {[%emt 0:00:12]} 35. Ke3 {[%emt 0:01:15]} a5 {[%emt 0:01:29]} 36. g4 {[%emt 0:00:24]} f6 {[%emt 0:00:55]} 37. h4 {[%emt 0:00:25]} e5 {[%emt 0:00:03]} 38. f5 {[%emt 0:00:33]} gxf5 {[%emt 0:00:31]} 39. gxf5 {[%emt 0:00:11]} Bb6+ {[%emt 0:00:01]} 40. Ke2 {[%emt 0:00:59]} Be4 {[%emt 0:00:20]} 41. Rc8 {[%emt 0:00:30]} Bxf5 {[%emt 0:00:04]} 42. Rb8 {[%emt 0:00:07]} Kc5 {[%emt 0:01:42]} 43. Rf8 {[%emt 0:00:02]} Bg4+ {[%emt 0:00:15]} 44. Kf2 {[%emt 0:00:42]} f5 {[%emt 0:00:12]} 45. Rh8 {[%emt 0:00:23]} f4 {[%emt 0:00:31]} 46. Rxh7 {[%emt 0:00:10]} Kd5+ {[%emt 0:00:10]} 47. Ke1 {[%emt 0:00:26]} f3 {[%emt 0:00:38]} 48. a4 {[%emt 0:01:12]} f2+ {[%emt 0:00:08]} 0-1

[Event "FIDE World School-ch O-17 2025"]
[Site "Vrnjacka Banja"]
[Date "2025.03.20"]
[Round "1.8"]
[White "Adithya A Chullikkad"]
[Black "Gigov, Mario"]
[Result "1-0"]
[Annotator "NA RC"]
[ECO "B07"]
[WhiteElo "2101"]
[BlackElo "1742"]
[PlyCount "65"]
[EventDate "2025.03.19"]
[EventType "swiss"]
[EventCountry "SRB"]
[SourceTitle "playchess.com"]
[Source "ChessBase"]
[SourceQuality "1"]
[TimeControl "5400+30"]

1. e4 {[%emt 0:00:09]} d6 {[%emt 0:00:15]} 2. d4 {[%emt 0:00:28]} Nf6 {[%emt 0:00:12]} 3. Nc3 {[%emt 0:00:33]} g6 {[%emt 0:00:36]} 4. f3 {[%emt 0:00:41]} Bg7 {[%emt 0:00:24]} 5. Be3 {[%emt 0:00:47]} O-O {[%emt 0:00:18]} 6. Qd2 {[%emt 0:00:50]} e5 {[%emt 0:01:09]} 7. d5 {[%emt 0:03:24]} Nbd7 {[%emt 0:01:37]} 8. h4 {[%emt 0:00:59]} Nh5 {[%emt 0:02:50]} 9. Nge2 {[%emt 0:11:47]} Bf6 {[%emt 0:11:13]} 10. O-O-O {[%emt 0:11:25]} Be7 {[%emt 0:09:59]} 11. g4 {[%emt 0:04:17]} Ng7 {[%emt 0:02:11]} 12. h5 {[%emt 0:03:29]} g5 {[%emt 0:00:18]} 13. h6 {[%emt 0:08:58]} Ne8 {[%emt 0:00:16]} 14. Ng3 {[%emt 0:01:19]} Nb6 {[%emt 0:01:07]} 15. a4 {[%emt 0:08:43]} Bd7 {[%emt 0:03:21]} 16. a5 {[%emt 0:01:14]} Na4 {[%emt 0:00:16]} 17. Nxa4 {[%emt 0:00:27]} Bxa4 {[%emt 0:00:12]} 18. Nf5 {[%emt 0:00:28]} f6 {[%emt 0:01:50]} 19. Qb4 {[%emt 0:00:14]} Bd7 {[%emt 0:05:08]} 20. Qxb7 {[%emt 0:02:15]} Bxf5 {[%emt 0:01:17]} 21. gxf5 {[%emt 0:00:20]} Qb8 {[%emt 0:01:42]} 22. a6 {[%emt 0:00:40]} Rf7 {[%emt 0:04:25]} 23. Bb5 {[%emt 0:00:41]} Kf8 {[%emt 0:00:44]} 24. Bc6 {[%emt 0:00:17]} Qxb7 {[%emt 0:04:23]} 25. axb7 {[%emt 0:00:06]} Rb8 {[%emt 0:01:14]} 26. Bxa7 {[%emt 0:00:07]} Rxb7 {[%emt 0:00:16]} 27. Bxb7 {[%emt 0:00:06]} Bd8 {[%emt 0:00:10]} 28. Bc6 {[%emt 0:00:06]} Ke7 {[%emt 0:01:09]} 29. Rd3 {[%emt 0:00:07]} Kf8 {[%emt 0:00:56]} 30. Rb3 {[%emt 0:00:05]} Ke7 {[%emt 0:01:15]} 31. Rd1 {[%emt 0:00:04]} Rf8 {[%emt 0:01:00]} 32. Rdd3 {[%emt 0:00:26]} Rg8 {[%emt 0:01:06]} 33. Rb8 {[%emt 0:00:35]} 1-0